Cogmind - Beta 16.1 @@@ ROGUE MODE // 2026.04.26 @ 18:48:01 Player: Bereft Result: Destroyed by G-47 Trooper with Particle Gun Performance ------------- Evolutions (0) 0 Regions Visited (2) 400 Robots Destroyed (22) 110 Value Destroyed (548) 548 Prototype IDs (0) 0 Alien Tech Used (0) 0 Bonus (0) 0 TOTAL SCORE: 1058 Bonus ------- None Cogmind --------- Core Integrity 0/250 Matter 300/300 Energy 100/100 System Corruption 1% Temperature Cool (15) Movement Walking (120) Location -10/Mines Parts ------- > --- POWER (1) -------- (None) > --- PROPULSION (2) --- Aluminum Leg Aluminum Leg > --- UTILITY (2) ------ Structural Scanner Signal Interpreter > --- WEAPON (2) ------- Mining Claw > --- INVENTORY (5) ---- Sensor Array Hacking Suite Small Laser Small Laser Heavy Assault Rifle Peak State ------------ > --- POWER ------------ Light Nuclear Core > --- PROPULSION ------- Aluminum Leg Aluminum Leg > --- UTILITY ---------- Signal Interpreter Targeting Computer > --- WEAPON ----------- Medium Laser Small Laser > --- INVENTORY -------- Aluminum Leg Aluminum Leg Structural Scanner Hacking Suite Mining Laser [Rating: 9] Favorites ----------- Power Ion Engine Engine Ion Engine Power Core Light Nuclear Core Propulsion Aluminum Leg Leg Aluminum Leg Utility Signal Interpreter Device Structural Scanner Storage Small Storage Unit Processor Signal Interpreter Weapon Medium Laser Energy Gun Medium Laser Ballistic Gun Heavy Assault Rifle Special Weapon Mining Laser Slashing Weapon Mining Claw Build | -11 -10 -10 ------- Run | Yrd Mat Min Slots Evolved . | . . . Power . | . . . Propulsion . | . . . Utility . | . . . Weapon . | . . . Parts Attached 33 | 7 23 3 Power 6 | 1 4 1 Engine 5 | 1 3 1 Core 1 | . 1 . Reactor . | . . . Propulsion 11 | 2 9 . Treads . | . . . Leg 11 | 2 9 . Wheel . | . . . Hover . | . . . Flight . | . . . Utility 7 | 1 6 . Device 2 | . 2 . Storage 1 | 1 . . Processor 4 | . 4 . Hackware . | . . . Protection . | . . . Artifact . | . . . Weapon 9 | 3 4 2 Energy Gun 6 | 3 3 . Energy Cannon . | . . . Ballistic Gun 1 | . . 1 Ballistic Cannon . | . . . Launcher . | . . . Special Weapon 1 | . . 1 Impact Weapon . | . . . Slashing Weapon 1 | . 1 . Piercing Weapon . | . . . Special Melee Weapon . | . . . Unidentified Prototypes . | . . . Parts Lost 6 | . 4 2 Power 3 | . 2 1 Propulsion . | . . . Utility 1 | . 1 . Weapon 2 | . 1 1 Highest Loss Streak 2 | . 1 2 To Critical Strikes . | . . . Average Backups 4 | 1 4 5 Power . | . . . Propulsion . | . . . Utility 1 | . 1 2 Weapon 1 | . 1 3 Tool/Special . | . . . Unused Backups 2 | . . 2 Power . | . . . Propulsion . | . . . Utility 2 | . . 2 Weapon . | . . . Tool/Special . | . . . Average Slot Usage (%) 93 | . 92 99 Engine 11 | . 11 14 Core 2 | . 2 . Leg 28 | . 28 28 Device 4 | . 3 14 Storage 1 | . 1 . Processor 18 | . 19 14 Energy Gun 22 | . 24 9 Slashing Weapon 2 | . . 14 Peak Build Rating 9 | 6 9 9 Average Rating 6 | 4 6 7 On Entrance 4 | . 6 7 Avg Prop Armor Cover (%) . | . . . Naked Turns . | . . . Heaviest Build 14 | 14 14 13 Greatest Support 20 | 20 20 20 Greatest Overweight (x) . | . . . Average Overweight (x) . | . . . Largest Inventory Capacity 8 | 8 8 5 Average Capacity 5 | 6 5 5 Most Carried 5 | 2 5 5 Average Carried 4 | 1 4 5 Final Capacity 8 | 8 5 5 Final Carried 5 | 2 5 5 Class Distribution -------------------- 84% | Mutant 15% | Scavenger-Mutant Dominant Class ---------------- Mutant | -10/Materials Mutant | -10/Mines Resources | -11 -10 -10 ----------- Run | Yrd Mat Min Matter Collected 606 | 209 338 59 Remotely . | . . . Salvage Created 779 | . 753 26 Parts 46 | . 43 3 Haulers Intercepted . | . . . Recyclers Shooed 2 | . 1 1 Parts Field Recycled . | . . . Retrieved Matter . | . . . Parts Self-Destructed . | . . . Prevented . | . . . Parts Restored . | . . . Kills | -11 -10 -10 ------- Run | Yrd Mat Min Combat Hostiles Destroyed 17 | . 15 2 Guns 16 | . 14 2 Classes Destroyed 6 | . 6 . Worker 2 | . 2 . Recycler 1 | . 1 . Operator 1 | . 1 . Watcher 1 | . 1 . Swarmer 4 | . 2 2 Grunt 13 | . 13 . Best Kill Streak 4 | . 4 1 Combat Bots Only 3 | . 3 1 Max Kills in Single Turn 1 | . 1 1 Gunslinging . | . . . Exploded . | . . . Melee . | . . . Uniques/NPCs Destroyed . | . . . Combat | -11 -10 -10 -------- Run | Yrd Mat Min Hostile Shots Fired 171 | . 118 53 Missed 69 | . 49 20 Hits 102 | . 69 33 Projectile 102 | . 69 33 Critical Strikes 1 | . 1 . Damage Taken 1121 | . 795 326 Core 262 | . 161 101 Absorbed by Shields . | . . . Regen/Repaired (Parts) 40 | . 40 . Core Remaining (%) 100 | 100 . . Volleys Fired 93 | . 75 18 Largest 2 | . 2 1 Hottest 100 | . 100 40 Shots Fired 146 | . 128 18 Gun 146 | . 128 18 Cannon . | . . . Launcher . | . . . Special . | . . . Kinetic 3 | . . 3 Thermal 143 | . 128 15 Explosive . | . . . Electromagnetic . | . . . Robot Hit Streak 9 | . 9 4 Robot Miss Streak 8 | . 4 8 Penetration Max . | . . . Secondary Targets 2 | . 2 . Max Gunslinging Chain 1 | . 1 . Shots Hit Robots 75 | . 67 8 Core Hits 41 | . 38 3 Critical Kills . | . . . Critical Parts Destroyed . | . . . Critical Strikes 10 | . 10 . Burn 10 | . 10 . Melee Attacks 3 | . . 3 Impact . | . . . Slashing 3 | . . 3 Piercing . | . . . Sneak Attacks . | . . . Combat Hostiles . | . . . Follow-up Attacks . | . . . Damage Inflicted 1039 | . 951 88 Guns 1004 | . 916 88 Cannons . | . . . Explosions . | . . . Melee . | . . . Ramming 35 | . 35 . Kinetic . | . . . Thermal 1004 | . 916 88 Explosive . | . . . Electromagnetic . | . . . Impact . | . . . Slashing . | . . . Piercing . | . . . Highest Corruption 1 | . 1 1 Average Corruption 1 | . 1 1 Corruption Purged . | . . . Corruption Blocked . | . . . Effects 6 | . 4 2 Message Errors 1 | . 1 . Matter Fused 2 | . 1 1 Heat Flow Errors 2 | . 1 1 Misfires 1 | . 1 . Overload Shots . | . . . Overflow Damage . | . . . Projectiles . | . . . Explosions . | . . . Melee . | . . . Knockbacks . | . . . Impact . | . . . Kinetic . | . . . Secondary . | . . . Self-Inflicted Damage . | . . . Shots . | . . . Rammed . | . . . Targets Rammed 10 | . 10 . Kicked 10 | . 10 . Crushed . | . . . Highest Temperature 480 | . 480 194 Average Temperature 120 | . 131 44 Received Heat Transfer 456 | . 384 72 Effects 3 | . 3 . Shutdowns 1 | . 1 . Energy Bleed 2 | . 2 . Siege Activations . | . . . Martial Activations . | . . . Shielding Activations . | . . . Robots Disrupted . | . . . Combat Hostiles . | . . . Robots Corrupted . | . . . Combat Hostiles . | . . . Parts Fried . | . . . Impact Corruptions . | . . . Robots Melted 1 | . 1 . Combat Hostiles 1 | . 1 . Parts Melted 6 | . 5 1 Heat Transferred 3547 | . 3347 200 Parts Sabotaged . | . . . Parts Stolen . | . . . Parts Stripped . | . . . Power Chain Reactions . | . . . Alert | -11 -10 -10 ------- Run | Yrd Mat Min Maximum Alert Level . | . . . Low Security (%) 100 | 100 100 100 Level 1 . | . . . Level 2 . | . . . Level 3 . | . . . Level 4 . | . . . Level 5 . | . . . High Security . | . . . Max Security . | . . . Peak Influence 61 | . 61 40 Initial 18 | . . 18 Average 15 | . 16 10 Influence Increases 477 | . 407 70 Destroy 0b10 Robot/C 340 | . 300 40 Destroy 0b10 Robot/NC 25 | . 25 . Destroy Leader 52 | . 52 . Successful Hack 30 | . 30 . Lose Combat Pursuer 30 | . . 30 Influence Decreases 477 | . 360 117 Entered New Map 29 | . . 29 Time Decay 428 | . 340 88 Lost Part 20 | . 20 . Squads Dispatched 3 | . 3 . Investigation 2 | . 2 . Extermination . | . . . Reinforcement 1 | . 1 . Assault . | . . . Garrison . | . . . Intercept . | . . . Searches Triggered . | . . . Construction Impeded . | . . . Haulers Reinforced . | . . . Active Scanning Responses . | . . . Cargo Convoy Interrupts . | . . . Stealth | -11 -10 -10 --------- Run | Yrd Mat Min Distress Signals . | . . . Communications Jammed . | . . . Distress Signals . | . . . Times Spotted 30 | . 21 9 Peak Tracking Total 4 | . 4 3 Tactical Retreats 1 | . . 1 Traps | -11 -10 -10 ------- Run | Yrd Mat Min Traps Triggered 5 | . 5 . Indirectly . | . . . Trap Hack Attempts . | . . . Triggered . | . . . Disarmed . | . . . Reprogrammed 6 | . 6 . Reused . | . . . Traps Extracted . | . . . Installed . | . . . Triggered . | . . . Machines | -11 -10 -10 ---------- Run | Yrd Mat Min Machines Disabled . | . . . Max in Single Turn . | . . . Machines Repaired . | . . . Machines Dismantled . | . . . Machines Sabotaged . | . . . Overloaded Fab Kills . | . . . Hacking | -11 -10 -10 --------- Run | Yrd Mat Min Machines Accessed 9 | . 9 . Terminals 6 | . 6 . Fabricators . | . . . Repair Stations 1 | . 1 . Recycling Units 2 | . 2 . Scanalyzers . | . . . Garrison Access . | . . . Total Hacks 28 | . 28 . Successful 15 | . 15 . Failed 13 | . 13 . Catastrophic 2 | . 2 . Database Lockouts . | . . . Manual 11 | . 11 . Terminals 20 | . 20 . Fabricators . | . . . Repair Stations 5 | . 5 . Recycling Units 3 | . 3 . Scanalyzers . | . . . Garrison Access . | . . . Terminal Hacks 6 | . 6 . Level Access Points 1 | . 1 . Reprogram Traps 1 | . 1 . Reinforcement Status 1 | . 1 . Hauler Manifests 1 | . 1 . Zone Layout 2 | . 2 . Fabricator Hacks . | . . . Repair Station Hacks 4 | . 4 . Scan Component 2 | . 2 . Repair 2 | . 2 . Recycling Unit Hacks . | . . . Scanalyzer . | . . . Garrison Access Hacks . | . . . Unauthorized Hacks 5 | . 5 . Terminals 3 | . 3 . Track 1 | . 1 . Assimilate 2 | . 2 . Fabricators . | . . . Repair Stations . | . . . Recycling Units 2 | . 2 . Reject 2 | . 2 . Scanalyzers . | . . . Garrison Access . | . . . Data Cores Recovered . | . . . Used . | . . . Hacking Detections 4 | . 4 . Full Trace Events 3 | . 3 . Feedback Events . | . . . Feedback Blocked . | . . . Robot Schematics Acquired . | . . . Robots Built . | . . . Authchips . | . . . Time . | . . . Total Robot Build Rating . | . . . Part Schematics Acquired . | . . . Parts Built . | . . . Authchips . | . . . Time . | . . . Total Part Build Rating . | . . . Part Studies Acquired . | . . . Parts Repaired 2 | . 2 . Time 52 | . 52 . Parts Recycled . | . . . Recycled Matter . | . . . Retrieved Matter . | . . . Retrieved Components . | . . . Parts Scanalyzed . | . . . Part Schematics Acquired . | . . . Parts Damaged . | . . . Bothacking | -11 -10 -10 ------------ Run | Yrd Mat Min Used RIF Installer . | . . . Robots Hacked . | . . . Non-combat . | . . . Combat . | . . . Robot Hacks Applied . | . . . Relay Couplers Released . | . . . Fabnet Peak Effective % . | . . . Robots Rewired . | . . . Allies Hacked . | . . . Hacks Repelled . | . . . Allies | -11 -10 -10 -------- Run | Yrd Mat Min Total Allies 3 | . . 3 Largest Group 3 | . . 3 Highest-Rated Group 40 | . . 40 Highest-Rated Ally 16 | . . 16 Total Orders 1 | . . 1 GUARD 1 | . . 1 Ally Attacks 1 | . . 1 Total Damage 10 | . . 10 Kills . | . . . Allies Corrupted . | . . . Allies Melted . | . . . Intel | -11 -10 -10 ------- Run | Yrd Mat Min Active Infowar (turns) 827 | . 506 321 Terrain 8 | . 8 . Structural 819 | . 498 321 Robot Analysis Total . | . . . Derelict Logs Recovered . | . . . Drone Launches . | . . . Drone Recoveries . | . . . Exploration | -11 -10 -10 ------------- Run | Yrd Mat Min Turns Passed 2533 | 76 2136 321 Spaces Moved 1580 | 56 1316 208 Core 4 | 4 . . Treads . | . . . Legs 1576 | 52 1316 208 Wheels . | . . . Hover . | . . . Flight . | . . . Fastest Speed 50 | 50 120 120 Average Speed 119 | 115 120 120 Slowest Speed 120 | 120 120 120 Overloaded Moves . | . . . Propulsion Burnouts . | . . . Robots Hopped . | . . . Potential Cave-ins . | . . . Cave-ins Triggered . | . . . Exploration Rate (%) 49 | 3 95 49 Regions Visited 2 Branch Regions 1 Pre-discovered Areas . | . . . Known Exits Taken 1 | . 1 . Unknown Exits Taken 1 | 1 . . Scrap Searched 2 | . . 2 Spaces Dug . | . . . Terrain Destroyed . | . . . Melee . | . . . Projectile . | . . . AOE . | . . . Terrain Rammed . | . . . Walls Destroyed . | . . . Machines Disabled . | . . . Actions | -11 -10 -10 --------- Run | Yrd Mat Min Total 2061 | 64 1742 255 Wait 304 | . 286 18 Move 1578 | 55 1315 208 Hop . | . . . Pick Up 12 | 2 10 . Fast Attach 19 | 6 11 2 Attach 4 | . 4 . Detach 1 | . 1 . Swap 18 | 1 14 3 Drop 19 | . 16 3 Fire 93 | . 75 18 Melee 3 | . . 3 Ram . | . . . Kick 10 | . 10 . Crush . | . . . Escape Stasis . | . . . Rewire . | . . . Trap . | . . . Miscellaneous . | . . . Route ------- -11/Scrapyard -10/Materials (discovered 5 exits: *Mat x3 / *Min / *Sub) -10/Mines History --------- Turn | Location | Event 8 | -11/Scrapyard | Discovered new exit (range 16) 77 | -11/Scrapyard | Entered Materials 78 | -10/Materials | Met a group of wandering Federalists 306 | -10/Materials | Build established: Mutant 380 | -10/Materials | Repaired Med. Laser 407 | -10/Materials | Repaired Med. Laser 696 | -10/Materials | Discovered new exit (range 7) 713 | -10/Materials | Identified exit to Materials 886 | -10/Materials | Discovered new exit (range 14) 900 | -10/Materials | Identified exit to Mines 931 | -10/Materials | Discovered new exit (range 10) 943 | -10/Materials | Identified exit to Subcaves 1689 | -10/Materials | Discovered exit to Materials (range 8) 1945 | -10/Materials | Build established: Scavenger-Mutant 2023 | -10/Materials | Core integrity fell below 50% 2213 | -10/Materials | Entered Mines 2243 | -10/Mines | Joined a pair of Derelicts in attacking an 0b10 outpost 2340 | -10/Mines | Build established: Mutant 2419 | -10/Mines | Core integrity fell below 20% 2478 | -10/Mines | Assisted by bots powering up and referring to "LRC-V3" 2534 | -10/Mines | Destroyed by G-47 Trooper with Particle Gun Last Messages --------------- Found 41 Matter. Acquired 3 matter. Acquired 10 matter. K-01 Serf collects debris. Flight Unit melted. S-10 Pest destroyed. Searching scrap... Found Seismic Detector. Found Terrain Scanner. Found 43 Matter. S-10 Pest destroyed. Trooper 1a: "Hello LRC-V3. What is your command?" Mercenary 1a: "Hello LRC-V3. What is your command?" Trooper 1b: "Hello LRC-V3. What is your command?" System corrupted: Matter fused (-5). Sml. Laser destroyed. Imp. Ion Engine destroyed. Map ----- +----------------------------------------------------+ | #??????##### #####???????????????????????????? | | ##?????## ###???????????????????????????? | | ###????## ##???????????????????????????? | | ###???## ##???????????????????????????? | | ##???#### ##???????????????????????????? | | ##???##### ## ##???????????????????????????? | | ###????######## ######???????????????????????? | | ############### # ####???????????????????????? | | ############# ## ##???????????????????????? | | ## ##???????????????????????? | | ##???????????????????????? | | ########## ###???????????????????????? | | " ############## ####???????????????????????? | | " ######??????## #######????????????????????????? | | " ###????????## ######?????????????????????????? | | ####???????## ##?????????????????????????????? | | #####?????## ##?????????????????????????????? | | ######???## ##?????????????????????????????? | | #####??## ##############?????????????????? | | ## ####?## ##############?????????????????? | | ### ## ###?## #### ##?????????????????? | | ######## ##?## #### g""" ##?????????????????? | | ?#######[ ##?## g """ ### #### ??????????? | | ???####%% ###?######## """ ### #### ??????????? | | ??#### [* ###?######## g ??????????? | | ??### #########?## @ ######?????????????? | | ??## #########################?????????????? | | ??## !###############?????????????????? | | %! ##?????????????????????????? | | # ### #### ##?????????????????????????? | | ###### #### #### ##?????????????????????????? | | ###### #### ##??????????????????????????????? | | ?????## #### ##??????????????????????????????? | | ??????### ### #####???????????????????????????? | | ??????#### ## ######??????????????????????????? | | ???????#### ## # ###??????????????????????????? | | ????????##### ###?????????????????????????? | | ????######### #####???????????????????????? | | ???########## #####??????????????????????? | | ???### ###??????????????????????? | | ???## ##??????????????????????? | | ???## ####### #%##??????????????????????? | | ???## ####### ###*##??????????????????????? | | ???### ??????### #### ##??????????????????????? | | ???#### ???????## #### ##??????????????????????? | | ????####???????######### ##??????????????????????? | | ?????###???????######### ######??????????????????? | | ??????????????????????##%######??????????????????? | | ??????????????????????## [ ##??????????????????? | | ??????????????????????###### ##??????????????????? | +----------------------------------------------------+ Best States ------------- Heat Dissipation 25 Energy Generation 14 Energy Capacity 265 Matter Stores 300 Matter Capacity 300 Sight Range 16 Terrain Scan Range 14 Terrain Scan Density 85 Evasion (%) 55 Targeting Accuracy 10 Item Schematics ----------------- None Robot Schematics ------------------ None Fabricated ------------ Nothing Repaired ---------- Med. Laser | 74% | -10/Materials Med. Laser | 68% | -10/Materials Studied --------- None Alien Tech Used ----------------- None Achievements -------------- None Challenges ------------ None Game ------ Seed MetafiberSiegeReactor Manual? 0 Play Time 00:23:06 Cumulative 29.2 hours Start 2026.04.26 @ 18:00:00 End 2026.04.26 @ 18:48:01 Sessions 1 Manual Loads 0 Difficulty Rogue Special Mode None Game No. 53 Rogue 53 Adventurer 0 Explorer 0 Win Type - Total 0 Types 0/0/0/0/0/0/0/0/0/0 Lore% 24 Gallery% 25 Achievement% 23 Wizard Run 0 Options --------- Layout 1 ASCII 0 Keyboard 0 Movement Mouse Keybinds 0 Fullscreen 1 Font 32/SmallcapsGlow Map View 50x35 Zoom Use 0% Tactical HUD 0 Map Filters NONE Filters NONE Steam 1 RUN: a3ffe90c-2607-4390-9d74-9e54d85a41fa